fUST/lending_fUST_20250511
["ID","MTS","AMOUNT","RATE_DAILY","PERIOD"]
[360606682,1746900634623,-2414.48,8.219e-05,2]
[360606683,1746900634632,-970.75,8.219e-05,2]
[360606685,1746900634642,-934.9,8.219e-05,2]
[360606687,1746900634651,-400.0,8.219e-05,2]
[360606689,1746900634663,-1054.84,8.219e-05,2]
[360606691,1746900634673,-47.77233107,8.219e-05,2]
[360606742,1746900638228,-300.21,8.117e-05,2]
[360606748,1746900638283,-199.79,8.117e-05,2]
[360606750,1746900638294,-65.37393284,8.117e-05,2]
[360607189,1746900643346,-259.43115445,8.117e-05,2]
[360607191,1746900643356,-448.93407755,8.117e-05,2]
[360608551,1746900675441,1000.0,8.019e-05,2]
[360608554,1746900748871,1000.0,8.019e-05,2]
[360608558,1746900843383,581.11594849,8.016e-05,2]
[360608687,1746901832594,-300.0,8.102e-05,2]
[360608689,1746901832604,-300.0,8.103e-05,2]
[360608691,1746901832613,-300.0,8.103e-05,2]
[360608693,1746901832624,-300.0,8.103e-05,2]
[360608695,1746901832634,-300.0,8.103e-05,2]
[360608697,1746901832644,-1200.0,8.103e-05,2]
[360608699,1746901832653,-189.37017472,8.103e-05,2]
[360608701,1746901832663,-500.0,8.104e-05,2]
[360608703,1746901832672,-500.0,8.104e-05,2]
[360608705,1746901832682,-500.0,8.104e-05,2]
[360608707,1746901832691,-430.52503788,8.104e-05,2]
[360608709,1746901832700,-500.0,8.104e-05,2]
[360608712,1746901832709,-2068.0,8.116e-05,2]
[360608714,1746901832719,-842.34118046,8.206e-05,2]
[360608718,1746901832728,-160.0,8.206e-05,2]
[360608721,1746901832738,-160.0,8.206e-05,2]
[360608724,1746901832747,-160.0,8.206e-05,2]
[360608727,1746901832757,-314.1579823,8.206e-05,2]
[360608730,1746901832766,-683.6722712,8.214e-05,2]
[360608733,1746901832776,-207.4,8.214e-05,2]
[360608735,1746901832785,-151.0,8.219e-05,2]
[360608739,1746901832795,-151.0,8.219e-05,2]
[360608741,1746901832805,-151.0,8.219e-05,2]
[360608744,1746901832815,-151.0,8.219e-05,2]
[360608746,1746901832825,-151.0,8.219e-05,2]
[360608748,1746901832835,-151.0,8.219e-05,2]
[360608750,1746901832846,-151.0,8.219e-05,2]
[360608752,1746901832855,-155.196221,8.219e-05,2]
[360608754,1746901832865,-151.0,8.219e-05,2]
[360608756,1746901832874,-151.0,8.219e-05,2]
[360608758,1746901832883,-151.0,8.219e-05,2]
[360608760,1746901832893,-159.753839,8.219e-05,2]
[360608762,1746901832902,-151.0,8.219e-05,2]
[360608764,1746901832911,-151.0,8.219e-05,2]
[360608766,1746901832921,-151.0,8.219e-05,2]
[360608768,1746901832930,-151.0,8.219e-05,2]
[360608770,1746901832940,-151.0,8.219e-05,2]
[360608771,1746901832949,-151.0,8.219e-05,2]
[360608772,1746901832958,-151.0,8.219e-05,2]
[360608773,1746901832968,-179.845406,8.219e-05,2]
[360608774,1746901832977,-151.0,8.219e-05,2]
[360608775,1746901832987,-151.0,8.219e-05,2]
[360608777,1746901832996,-151.0,8.219e-05,2]
[360608779,1746901833006,-151.0,8.219e-05,2]
[360608781,1746901833015,-151.0,8.219e-05,2]
[360608783,1746901833025,-151.0,8.219e-05,2]
[360608784,1746901833036,-151.0,8.219e-05,2]
[360608785,1746901833048,-151.0,8.219e-05,2]
[360608786,1746901833058,-151.0,8.219e-05,2]
[360608787,1746901833068,-151.0,8.219e-05,2]
[360608788,1746901833077,-151.043506,8.219e-05,2]
[360608789,1746901833087,-400.0,8.219e-05,2]
[360608790,1746901833097,-400.0,8.219e-05,2]
[360608791,1746901833106,-400.0,8.219e-05,2]
[360608792,1746901833115,-179.77267593,8.219e-05,2]
[360608793,1746901833125,-400.0,8.219e-05,2]
[360608794,1746901833137,-542.99,8.219e-05,2]
[360608795,1746901833146,-558.73,8.219e-05,2]
[360608796,1746901833156,-400.0,8.219e-05,2]
[360608797,1746901833166,-762.41,8.219e-05,2]
[360608798,1746901833175,-400.0,8.219e-05,2]
[360608799,1746901833184,-400.0,8.219e-05,2]
[360608800,1746901833196,-400.0,8.219e-05,2]
[360608801,1746901833206,-400.0,8.219e-05,2]
[360608802,1746901833216,-1191.69,8.219e-05,2]
[360608803,1746901833225,-356.87747387,8.219e-05,2]
[360608804,1746901833235,-400.0,8.219e-05,2]
[360608805,1746901833244,-1074.14,8.219e-05,2]
[360608806,1746901833253,-466.29540115,8.219e-05,2]
[360608807,1746901833263,-400.0,8.219e-05,2]
[360608808,1746901833272,-400.0,8.219e-05,2]
[360608809,1746901833282,-400.0,8.219e-05,2]
[360608810,1746901833292,-151.0,8.219e-05,2]
[360608811,1746901833302,-151.0,8.219e-05,2]
[360608812,1746901833311,-151.0,8.219e-05,2]
[360608813,1746901833321,-151.0,8.219e-05,2]
[360608814,1746901833531,-151.0,8.219e-05,2]
[360608815,1746901833540,-414.47,8.219e-05,2]
[360608816,1746901833550,-151.0,8.219e-05,2]
[360608817,1746901833560,-151.0,8.219e-05,2]
[360608818,1746901833570,-151.0,8.219e-05,2]
[360608819,1746901833579,-400.0,8.219e-05,2]
[360608820,1746901833588,-151.0,8.219e-05,2]
[360608821,1746901833598,-151.0,8.219e-05,2]
[360608822,1746901833607,-151.0,8.219e-05,2]
[360608823,1746901833616,-400.0,8.219e-05,2]
[360608824,1746901833626,-257.611222,8.219e-05,2]
[360608825,1746901833635,-400.0,8.219e-05,2]
[360608826,1746901833644,-400.0,8.219e-05,2]
[360608827,1746901833653,-400.0,8.219e-05,2]
[360608828,1746901833664,-1033.06,8.219e-05,2]
[360608829,1746901833674,-400.0,8.219e-05,2]
[360608830,1746901833683,-400.0,8.219e-05,2]
[360608831,1746901833693,-400.0,8.219e-05,2]
[360608832,1746901833702,-472.62,8.219e-05,2]
[360608833,1746901833711,-400.0,8.219e-05,2]
[360608834,1746901833722,-151.0,8.219e-05,2]
[360608835,1746901833731,-151.0,8.219e-05,2]
[360608836,1746901833741,-151.0,8.219e-05,2]
[360608837,1746901833751,-151.0,8.219e-05,2]
[360608838,1746901833760,-151.0,8.219e-05,2]
[360608839,1746901833770,-151.0,8.219e-05,2]
[360608840,1746901833779,-192.63772,8.219e-05,2]
[360608841,1746901833790,-400.0,8.219e-05,2]
[360608842,1746901833800,-400.0,8.219e-05,2]
[360608843,1746901833810,-664.39,8.219e-05,2]
[360608844,1746901833819,-400.0,8.219e-05,2]
[360608845,1746901833829,-400.0,8.219e-05,2]
[360608846,1746901833839,-625.69,8.219e-05,2]
[360608847,1746901833848,-515.93,8.219e-05,2]
[360608848,1746901833858,-400.0,8.219e-05,2]
[360608849,1746901833867,-400.0,8.219e-05,2]
[360608850,1746901833877,-400.0,8.219e-05,2]
[360608851,1746901833886,-400.0,8.219e-05,2]
[360608852,1746901833895,-400.0,8.219e-05,2]
[360608853,1746901833905,-177.761798,8.219e-05,2]
[360608854,1746901833915,-646.52,8.219e-05,2]
[360608855,1746901833925,-174.901,8.219e-05,2]
[360608856,1746901833935,-400.0,8.219e-05,2]
[360608857,1746901833944,-422.17,8.219e-05,2]
[360608858,1746901833954,-400.0,8.219e-05,2]
[360608859,1746901833964,-412.31,8.219e-05,2]
[360608860,1746901833973,-411.7,8.219e-05,2]
[360608861,1746901833982,-234.19127075,8.219e-05,2]
[360608862,1746901833992,-400.0,8.219e-05,2]
[360608863,1746901834000,-400.0,8.219e-05,2]
[360608864,1746901834010,-400.0,8.219e-05,2]
[360608865,1746901834020,-576.61,8.219e-05,2]
[360608866,1746901834030,-542.32,8.219e-05,2]
[360608867,1746901834040,-400.0,8.219e-05,2]
[360608868,1746901834053,-400.0,8.219e-05,2]
[360608869,1746901834064,-400.0,8.219e-05,2]
[360608870,1746901834074,-400.0,8.219e-05,2]
[360608871,1746901834083,-400.0,8.219e-05,2]
[360608872,1746901834093,-400.0,8.219e-05,2]
[360608873,1746901834102,-400.0,8.219e-05,2]
[360608874,1746901834111,-400.0,8.219e-05,2]
[360608875,1746901834120,-400.0,8.219e-05,2]
[360608876,1746901834130,-400.0,8.219e-05,2]
[360608877,1746901834139,-400.0,8.219e-05,2]
[360608878,1746901834148,-545.73,8.219e-05,2]
[360608879,1746901834158,-400.0,8.219e-05,2]
[360608880,1746901834167,-752.06,8.219e-05,2]
[360608881,1746901834177,-463.07,8.219e-05,2]
[360608882,1746901834186,-400.13498197,8.219e-05,2]
[360608883,1746901834196,-653.12,8.219e-05,2]
[360608884,1746901834205,-400.0,8.219e-05,2]
[360608885,1746901834215,-1426.95,8.219e-05,2]
[360608886,1746901834225,-500.0,8.219e-05,2]
[360608887,1746901834234,-623.38,8.219e-05,2]
[360608888,1746901834243,-400.0,8.219e-05,2]
[360608889,1746901834252,-151.0,8.219e-05,2]
[360608890,1746901834261,-228.84681859,8.219e-05,2]
[360608891,1746901834270,-151.0,8.219e-05,2]
[360608892,1746901834279,-443.28,8.219e-05,2]
[360608893,1746901834289,-515.36,8.219e-05,2]
[360608894,1746901834298,-400.0,8.219e-05,2]
[360608895,1746901834308,-425.18,8.219e-05,2]
[360608896,1746901834317,-579.4,8.219e-05,2]
[360608897,1746901834327,-400.0,8.219e-05,2]
[360608898,1746901834337,-1835.46,8.219e-05,2]
[360608899,1746901834346,-400.0,8.219e-05,2]
[360608900,1746901834355,-400.0,8.219e-05,2]
[360608901,1746901834364,-400.0,8.219e-05,2]
[360608902,1746901834373,-400.0,8.219e-05,2]
[360608903,1746901834383,-1232.64,8.219e-05,2]
[360608904,1746901834392,-828.26,8.219e-05,2]
[360608905,1746901834402,-400.0,8.219e-05,2]
[360608906,1746901834412,-400.0,8.219e-05,2]
[360608907,1746901834421,-400.0,8.219e-05,2]
[360608908,1746901834431,-400.0,8.219e-05,2]
[360608909,1746901834441,-697.96,8.219e-05,2]
[360608910,1746901834451,-864.54,8.219e-05,2]
[360608911,1746901834460,-308.999224,8.219e-05,2]
[360608912,1746901834470,-308.999224,8.219e-05,2]
[360608913,1746901834479,-308.999224,8.219e-05,2]
[360608914,1746901834488,-400.0,8.219e-05,2]
[360608915,1746901834498,-308.999224,8.219e-05,2]
[360608916,1746901834507,-400.0,8.219e-05,2]
[360608917,1746901834518,-308.999224,8.219e-05,2]
[360608918,1746901834528,-308.999224,8.219e-05,2]
[360608919,1746901834537,-308.999224,8.219e-05,2]
[360608920,1746901834546,-308.999224,8.219e-05,2]
[360608921,1746901834555,-308.999224,8.219e-05,2]
[360608922,1746901834565,-308.999224,8.219e-05,2]
[360608923,1746901834573,-308.999224,8.219e-05,2]
[360608924,1746901834582,-308.999224,8.219e-05,2]
[360608925,1746901834591,-308.999224,8.219e-05,2]
[360608926,1746901834600,-308.999224,8.219e-05,2]
[360608927,1746901834610,-400.0,8.219e-05,2]
[360608928,1746901834619,-308.999224,8.219e-05,2]
[360608929,1746901834628,-308.999224,8.219e-05,2]
[360608930,1746901834638,-308.999224,8.219e-05,2]
[360608931,1746901834647,-308.999224,8.219e-05,2]
[360608932,1746901834656,-308.999224,8.219e-05,2]
[360608933,1746901834666,-449.0,8.219e-05,2]
[360608934,1746901834675,-308.999219,8.219e-05,2]
[360608935,1746901834685,-413.83,8.219e-05,2]
[360608936,1746901834695,-951.18,8.219e-05,2]
[360608937,1746901834704,-178.08701107,8.219e-05,2]
[360608938,1746901834713,-2610.59,8.219e-05,2]
[360608939,1746901834723,-400.0,8.219e-05,2]
[360608940,1746901834732,-400.0,8.219e-05,2]
[360608941,1746901834741,-400.0,8.219e-05,2]
[360608942,1746901834751,-400.0,8.219e-05,2]
[360608943,1746901834760,-474.51,8.219e-05,2]
[360608944,1746901834770,-400.0,8.219e-05,2]
[360608945,1746901834779,-400.0,8.219e-05,2]
[360608946,1746901834789,-844.72,8.219e-05,2]
[360608947,1746901834798,-452.07,8.219e-05,2]
[360608948,1746901834808,-562.18,8.219e-05,2]
[360608949,1746901834819,-400.0,8.219e-05,2]
[360608950,1746901834832,-400.0,8.219e-05,2]
[360608951,1746901834841,-563.86,8.219e-05,2]
[360608952,1746901834851,-400.0,8.219e-05,2]
[360608953,1746901834860,-400.0,8.219e-05,2]
[360608954,1746901834869,-400.0,8.219e-05,2]
[360608955,1746901834879,-895.35,8.219e-05,2]
[360608956,1746901834888,-400.0,8.219e-05,2]
[360608957,1746901834897,-400.0,8.219e-05,2]
[360608958,1746901834906,-986.61,8.219e-05,2]
[360608959,1746901834916,-450.93,8.219e-05,2]
[360608960,1746901834926,-400.0,8.219e-05,2]
[360608961,1746901834935,-400.0,8.219e-05,2]
[360608962,1746901834945,-219.010956,8.219e-05,2]
[360608963,1746901834955,-536.52896253,8.219e-05,2]
[360608964,1746901834964,-400.0,8.219e-05,2]
[360608965,1746901834973,-2259.27,8.219e-05,2]
[360608966,1746901834982,-400.0,8.219e-05,2]
[360608967,1746901834992,-448.66107875,8.219e-05,2]
[360608968,1746901835002,-151.0,8.219e-05,2]
[360608969,1746901835011,-151.0,8.219e-05,2]
[360608970,1746901835020,-1028.2,8.219e-05,2]
[360608971,1746901835030,-151.0,8.219e-05,2]
[360608972,1746901835040,-2313.88,8.219e-05,2]
[360608973,1746901835053,-151.0,8.219e-05,2]
[360608974,1746901835061,-151.0,8.219e-05,2]
[360608975,1746901835070,-234.9732,8.219e-05,2]
[360608976,1746901835079,-400.0,8.219e-05,2]
[360608977,1746901835090,-400.0,8.219e-05,2]
[360608978,1746901835099,-1010.89,8.219e-05,2]
[360608979,1746901835109,-400.0,8.219e-05,2]
[360608980,1746901835118,-400.0,8.219e-05,2]
[360608981,1746901835127,-400.0,8.219e-05,2]
[360608982,1746901835137,-400.0,8.219e-05,2]
[360608983,1746901835146,-400.0,8.219e-05,2]
[360608984,1746901835155,-400.0,8.219e-05,2]
[360608985,1746901835166,-400.0,8.219e-05,2]
[360608986,1746901835175,-521.18,8.219e-05,2]
[360608987,1746901835185,-434.4,8.219e-05,2]
[360608988,1746901835194,-400.0,8.219e-05,2]
[360608989,1746901835203,-400.0,8.219e-05,2]
[360608990,1746901835213,-895.95,8.219e-05,2]
[360608991,1746901835222,-400.0,8.219e-05,2]
[360608992,1746901835232,-400.0,8.219e-05,2]
[360608993,1746901835241,-400.0,8.219e-05,2]
[360608994,1746901835250,-1102.38,8.219e-05,2]
[360608995,1746901835259,-400.0,8.219e-05,2]
[360608996,1746901835269,-400.0,8.219e-05,2]
[360608997,1746901835278,-400.0,8.219e-05,2]
[360608998,1746901835287,-1501.14,8.219e-05,2]
[360608999,1746901835296,-400.0,8.219e-05,2]
[360609000,1746901835306,-400.0,8.219e-05,2]
[360609001,1746901835316,-916.65,8.219e-05,2]
[360609002,1746901835327,-400.0,8.219e-05,2]
[360609003,1746901835337,-400.0,8.219e-05,2]
[360609004,1746901835348,-400.0,8.219e-05,2]
[360609005,1746901835358,-400.0,8.219e-05,2]
[360609006,1746901835367,-834.07,8.219e-05,2]
[360609007,1746901835377,-400.0,8.219e-05,2]
[360609008,1746901835387,-1422.77,8.219e-05,2]
[360609009,1746901835397,-460.79,8.219e-05,2]
[360609010,1746901835406,-400.0,8.219e-05,2]
[360609011,1746901835417,-438.85599414,8.219e-05,2]
[360609012,1746901835427,-1477.18,8.219e-05,2]
[360609013,1746901835436,-400.0,8.219e-05,2]
[360609014,1746901835445,-400.0,8.219e-05,2]
[360609015,1746901835455,-425.18,8.219e-05,2]
[360609016,1746901835464,-400.0,8.219e-05,2]
[360609017,1746901835474,-400.0,8.219e-05,2]
[360609018,1746901835485,-1597.38,8.219e-05,2]
[360609019,1746901835494,-1149.34,8.219e-05,2]
[360609020,1746901835504,-1022.32,8.219e-05,2]
[360609021,1746901835515,-400.0,8.219e-05,2]
[360609022,1746901835525,-662.28,8.219e-05,2]
[360609023,1746901835534,-151.0,8.219e-05,2]
[360609024,1746901835544,-151.0,8.219e-05,2]
[360609025,1746901835555,-151.0,8.219e-05,2]
[360609026,1746901835566,-151.0,8.219e-05,2]
[360609027,1746901835575,-400.0,8.219e-05,2]
[360609028,1746901835586,-151.0,8.219e-05,2]
[360609029,1746901835598,-151.0,8.219e-05,2]
[360609030,1746901835608,-161.854308,8.219e-05,2]
[360609031,1746901835618,-400.0,8.219e-05,2]
[360609032,1746901835628,-400.0,8.219e-05,2]
[360609033,1746901835638,-5414.69,8.219e-05,2]
[360609034,1746901835649,-400.0,8.219e-05,2]
[360609035,1746901835658,-930.3,8.219e-05,2]
[360609036,1746901835667,-1222.09,8.219e-05,2]
[360609037,1746901835675,-464.38625372,8.219e-05,2]
[360609038,1746901835684,-400.0,8.219e-05,2]
[360609039,1746901835693,-409.47,8.219e-05,2]
[360609040,1746901835703,-400.0,8.219e-05,2]
[360609041,1746901835712,-152.672107,8.219e-05,2]
[360609042,1746901835721,-400.0,8.219e-05,2]
[360609043,1746901835730,-400.0,8.219e-05,2]
[360609044,1746901835739,-501.91,8.219e-05,2]
[360609045,1746901835749,-400.0,8.219e-05,2]
[360609046,1746901835758,-400.0,8.219e-05,2]
[360609047,1746901835767,-400.0,8.219e-05,2]
[360609048,1746901835777,-151.0,8.219e-05,2]
[360609049,1746901835788,-441.63,8.219e-05,2]
[360609050,1746901835797,-151.0,8.219e-05,2]
[360609051,1746901835807,-151.0,8.219e-05,2]
[360609052,1746901835816,-151.0,8.219e-05,2]
[360609053,1746901835825,-151.0,8.219e-05,2]
[360609054,1746901835834,-1014.59,8.219e-05,2]
[360609055,1746901835843,-151.0,8.219e-05,2]
[360609056,1746901835852,-151.0,8.219e-05,2]
[360609057,1746901835861,-151.0,8.219e-05,2]
[360609058,1746901835871,-151.0,8.219e-05,2]
[360609059,1746901835880,-172.851204,8.219e-05,2]
[360609060,1746901835889,-400.0,8.219e-05,2]
[360609061,1746901835900,-400.0,8.219e-05,2]
[360609062,1746901835910,-400.0,8.219e-05,2]
[360609063,1746901835919,-721.42,8.219e-05,2]
[360609064,1746901835929,-400.0,8.219e-05,2]
[360609065,1746901835939,-1125.16,8.219e-05,2]
[360609066,1746901835949,-400.0,8.219e-05,2]
[360609067,1746901835959,-1167.96,8.219e-05,2]
[360609068,1746901835969,-400.0,8.219e-05,2]
[360609069,1746901835978,-400.0,8.219e-05,2]
[360609070,1746901835987,-400.0,8.219e-05,2]
[360609071,1746901835997,-400.0,8.219e-05,2]
[360609072,1746901836007,-400.0,8.219e-05,2]
[360609073,1746901836018,-400.0,8.219e-05,2]
[360609074,1746901836028,-504.4717859,8.219e-05,2]
[360609075,1746901836037,-677.24,8.219e-05,2]
[360609076,1746901836048,-151.0,8.219e-05,2]
[360609077,1746901836058,-151.0,8.219e-05,2]
[360609078,1746901836067,-1887.39,8.219e-05,2]
[360609079,1746901836078,-151.0,8.219e-05,2]
[360609080,1746901836087,-151.0,8.219e-05,2]
[360609081,1746901836098,-151.0,8.219e-05,2]
[360609082,1746901836108,-151.0,8.219e-05,2]
[360609083,1746901836119,-151.0,8.219e-05,2]
[360609084,1746901836131,-151.0,8.219e-05,2]
[360609085,1746901836140,-173.863912,8.219e-05,2]
[360609086,1746901836150,-400.0,8.219e-05,2]
[360609087,1746901836160,-400.0,8.219e-05,2]
[360609088,1746901836171,-165.02999101,8.219e-05,2]
[360609089,1746901836180,-400.0,8.219e-05,2]
[360609090,1746901836189,-400.0,8.219e-05,2]
[360609091,1746901836199,-400.0,8.219e-05,2]
[360609092,1746901836210,-819.65,8.219e-05,2]
[360609093,1746901836221,-400.0,8.219e-05,2]
[360609094,1746901836233,-400.0,8.219e-05,2]
[360609095,1746901836242,-400.0,8.219e-05,2]
[360609096,1746901836252,-400.0,8.219e-05,2]
[360609097,1746901836261,-867.99,8.219e-05,2]
[360609098,1746901836270,-151.0,8.219e-05,2]
[360609099,1746901836283,-151.0,8.219e-05,2]
[360609100,1746901836292,-151.0,8.219e-05,2]
[360609101,1746901836301,-1151.45,8.219e-05,2]
[360609102,1746901836311,-151.0,8.219e-05,2]
[360609103,1746901836320,-151.0,8.219e-05,2]
[360609104,1746901836329,-400.0,8.219e-05,2]
[360609105,1746901836339,-151.0,8.219e-05,2]
[360609106,1746901836349,-151.0,8.219e-05,2]
[360609107,1746901836359,-452.14,8.219e-05,2]
[360609108,1746901836369,-500.0,8.219e-05,2]
[360609109,1746901836379,-1835.81,8.219e-05,2]
[360609110,1746901836388,-185.90379945,8.219e-05,2]
[360609111,1746901836397,-500.0,8.219e-05,2]
[360609112,1746901836407,-875.55,8.219e-05,2]
[360609113,1746901836416,-500.0,8.219e-05,2]
[360609114,1746901836425,-643.24,8.219e-05,2]
[360609115,1746901836435,-151.0,8.219e-05,2]
[360609116,1746901836444,-1172.39,8.219e-05,2]
[360609117,1746901836454,-400.0,8.219e-05,2]
[360609118,1746901836464,-400.0,8.219e-05,2]
[360609119,1746901836473,-400.0,8.219e-05,2]
[360609120,1746901836483,-500.0,8.219e-05,2]
[360609121,1746901836492,-1059.58,8.219e-05,2]
[360609122,1746901836502,-500.0,8.219e-05,2]
[360609123,1746901836511,-151.0,8.219e-05,2]
[360609124,1746901836521,-400.0,8.219e-05,2]
[360609125,1746901836530,-151.0,8.219e-05,2]
[360609126,1746901836540,-400.0,8.219e-05,2]
[360609127,1746901836549,-151.0,8.219e-05,2]
[360609128,1746901836559,-1834.6,8.219e-05,2]
[360609129,1746901836568,-151.0,8.219e-05,2]
[360609130,1746901836577,-151.0,8.219e-05,2]
[360609131,1746901836587,-151.0,8.219e-05,2]
[360609132,1746901836596,-151.0,8.219e-05,2]
[360609133,1746901836605,-151.0,8.219e-05,2]
[360609134,1746901836615,-1155.31,8.219e-05,2]
[360609135,1746901836624,-1252.62,8.219e-05,2]
[360609136,1746901836633,-152.842715,8.219e-05,2]
[360609137,1746901836643,-1027.33,8.219e-05,2]
[360609138,1746901836653,-400.0,8.219e-05,2]
[360609139,1746901836663,-400.0,8.219e-05,2]
[360609140,1746901836672,-2405.81,8.219e-05,2]
[360609141,1746901836683,-500.0,8.219e-05,2]
[360609142,1746901836692,-500.0,8.219e-05,2]
[360609143,1746901836702,-511.36872054,8.219e-05,2]
[360609144,1746901836711,-3250.7,8.219e-05,2]
[360609145,1746901836721,-5166.94,8.219e-05,2]
[360609146,1746901836730,-400.0,8.219e-05,2]
[360609147,1746901836739,-4514.83,8.219e-05,2]
[360609148,1746901836749,-400.0,8.219e-05,2]
[360609149,1746901836758,-480.88,8.219e-05,2]
[360609150,1746901836768,-1126.11,8.219e-05,2]
[360609151,1746901836777,-414.85,8.219e-05,2]
[360609152,1746901836787,-3845.28,8.219e-05,2]
[360609153,1746901836796,-930.62,8.219e-05,2]
[360609154,1746901836806,-598.05,8.219e-05,2]
[360609155,1746901836971,-400.0,8.219e-05,2]
[360609156,1746901836982,-400.0,8.219e-05,2]
[360609157,1746901836992,-400.0,8.219e-05,2]
[360609158,1746901837002,-600.19,8.219e-05,2]
[360609159,1746901837012,-438.65,8.219e-05,2]
[360609160,1746901837021,-9153.11,8.219e-05,2]
[360609161,1746901837030,-400.0,8.219e-05,2]
[360609162,1746901837039,-400.0,8.219e-05,2]
[360609163,1746901837052,-201.13381082,8.219e-05,2]
[360609164,1746901837061,-151.0,8.219e-05,2]
[360609165,1746901837072,-151.0,8.219e-05,2]
[360609166,1746901837081,-151.0,8.219e-05,2]
[360609167,1746901837093,-151.0,8.219e-05,2]
[360609168,1746901837102,-151.0,8.219e-05,2]
[360609169,1746901837111,-151.0,8.219e-05,2]
[360609170,1746901837121,-151.0,8.219e-05,2]
[360609171,1746901837131,-151.0,8.219e-05,2]
[360609172,1746901837141,-500.0,8.219e-05,2]
[360609173,1746901837150,-1156.16,8.219e-05,2]
[360609174,1746901837160,-400.0,8.219e-05,2]
[360609175,1746901837171,-916.2,8.219e-05,2]
[360609176,1746901837181,-537.42,8.219e-05,2]
[360609177,1746901837191,-500.0,8.219e-05,2]
[360609178,1746901837201,-439.91,8.219e-05,2]
[360609179,1746901837210,-400.0,8.219e-05,2]
[360609180,1746901837219,-151.0,8.219e-05,2]
[360609181,1746901837229,-167.46016649,8.219e-05,2]
[360609182,1746901837239,-932.03,8.219e-05,2]
[360609183,1746901837248,-500.0,8.219e-05,2]
[360609184,1746901837258,-400.0,8.219e-05,2]
[360609185,1746901837267,-169.27923323,8.219e-05,2]
[360609186,1746901837276,-869.3,8.219e-05,2]
[360609187,1746901837285,-400.0,8.219e-05,2]
[360609188,1746901837295,-151.0,8.219e-05,2]
[360609189,1746901837305,-2593.4,8.219e-05,2]
[360609190,1746901837314,-2648.73,8.219e-05,2]
[360609191,1746901837324,-151.0,8.219e-05,2]
[360609192,1746901837334,-696.6,8.219e-05,2]
[360609193,1746901837343,-400.0,8.219e-05,2]
[360609194,1746901837353,-2488.47,8.219e-05,2]
[360609195,1746901837363,-792.52,8.219e-05,2]
[360609196,1746901837372,-400.0,8.219e-05,2]
[360609197,1746901837382,-1254.98,8.219e-05,2]
[360609198,1746901837392,-400.0,8.219e-05,2]
[360609199,1746901837402,-1007.44,8.219e-05,2]
[360609200,1746901837411,-1272.85,8.219e-05,2]
[360609201,1746901837422,-929.46,8.219e-05,2]
[360609202,1746901837432,-400.0,8.219e-05,2]
[360609203,1746901837443,-400.0,8.219e-05,2]
[360609204,1746901837453,-1413.21,8.219e-05,2]
[360609205,1746901837463,-1886.18,8.219e-05,2]
[360609206,1746901837472,-2026.24,8.219e-05,2]
[360609207,1746901837482,-413.04,8.219e-05,2]
[360609208,1746901837491,-400.0,8.219e-05,2]
[360609209,1746901837501,-607.15,8.219e-05,2]
[360609210,1746901837511,-1691.15,8.219e-05,2]
[360609211,1746901837521,-1889.2,8.219e-05,2]
[360609212,1746901837531,-1140.48,8.219e-05,2]
[360609213,1746901837540,-400.0,8.219e-05,2]
[360609214,1746901837549,-820.29,8.219e-05,2]
[360609215,1746901837559,-978.64,8.219e-05,2]
[360609216,1746901837568,-165.13411794,8.219e-05,2]
[360609217,1746901837577,-400.0,8.219e-05,2]
[360609218,1746901837587,-537.56042679,8.219e-05,2]
[360609219,1746901837596,-400.0,8.219e-05,2]
[360609220,1746901837606,-404.64,8.219e-05,2]
[360609221,1746901837615,-329.49019245,8.219e-05,2]
[360609222,1746901837625,-1506.78,8.219e-05,2]
[360609223,1746901837634,-614.73,8.219e-05,2]